[Event "Turkish Youth Championship 2024"]
[Site "Samsun"]
[Date "2024.05.22"]
[Round "7"]
[White "Atis, Hasan"]
[Black "Bilgin, Ali Tugrul"]
[Result "1-0"]
[ECO "C04"]
[WhiteElo "2014"]
[BlackElo "1678"]
[Annotator "RC"]
[PlyCount "137"]
[EventDate "2024.05.18"]
[EventType "swiss"]
[EventCountry "TUR"]
[SourceTitle "playchess.com"]
[Source "ChessBase"]
[SourceQuality "1"]
[TimeControl "5400+30"]

1. e4 {[%emt 0:01:00]} e6 {[%emt 0:01:00]} 2. d4 {[%emt 0:00:30]} d5 {[%emt 0:00:30]} 3. Nd2 {[%emt 0:00:30]} Nc6 {[%emt 0:00:00]} 4. Ngf3 {[%emt 0:00:00]} Nf6 {[%emt 0:00:00]} 5. exd5 {[%emt 0:02:00]} exd5 {[%emt 0:00:30]} 6. c3 {[%emt 0:00:30]} Bd6 {[%emt 0:01:30]} 7. Be2 {[%emt 0:01:30]} O-O {[%emt 0:00:30]} 8. O-O {[%emt 0:00:00]} h6 {[%emt 0:04:30]} 9. Re1 {[%emt 0:01:00]} Bf5 {[%emt 0:01:30]} 10. Nf1 {[%emt 0:00:30]} Ne7 {[%emt 0:05:30]} 11. Ne5 {[%emt 0:05:30]} c5 {[%emt 0:04:30]} 12. Ng3 {[%emt 0:03:30]} Bh7 {[%emt 0:11:30]} 13. Be3 {[%emt 0:14:30]} c4 {[%emt 0:02:30]} 14. Bf3 {[%emt 0:03:30]} Ne8 {[%emt 0:02:30]} 15. Bd2 {[%emt 0:10:30]} f6 {[%emt 0:11:30]} 16. Ng4 {[%emt 0:00:30]} Kh8 {[%emt 0:01:30]} 17. Qc1 {[%emt 0:10:30]} f5 {[%emt 0:03:30]} 18. Ne5 {[%emt 0:00:30]} Nf6 {[%emt 0:00:30]} 19. b3 {[%emt 0:12:30]} b5 {[%emt 0:05:30]} 20. a4 {[%emt 0:00:30]} Ne4 {[%emt 0:11:30]} 21. axb5 {[%emt 0:03:30]} Bxe5 {[%emt 0:00:30]} 22. dxe5 {[%emt 0:00:30]} cxb3 {[%emt 0:00:30]} 23. Bxe4 {[%emt 0:03:30]} fxe4 {[%emt 0:00:30]} 24. Be3 {[%emt 0:01:30]} Qb8 {[%emt 0:00:30]} 25. Qa3 {[%emt 0:01:30]} Qxe5 {[%emt 0:04:30]} 26. Qxb3 {[%emt 0:00:30]} Qc7 {[%emt 0:00:30]} 27. Ra6 {[%emt 0:03:42]} Bg8 {[%emt 0:08:37]} 28. Bd4 {[%emt 0:00:49]} Kh7 {[%emt 0:00:03]} 29. Rea1 {[%emt 0:00:00]} Nc8 {[%emt 0:02:25]} 30. Qb1 {[%emt 0:03:24]} Qb7 {[%emt 0:03:00]} 31. R1a5 {[%emt 0:05:02]} Nb6 {[%emt 0:02:24]} 32. f3 {[%emt 0:04:47]} Bf7 {[%emt 0:01:15]} 33. Ra2 {[%emt 0:02:17]} Bg6 {[%emt 0:01:01]} 34. fxe4 {[%emt 0:00:59]} dxe4 {[%emt 0:00:54]} 35. Qa1 {[%emt 0:00:07]} Nc8 {[%emt 0:03:42]} 36. c4 {[%emt 0:00:06]} Rb8 {[%emt 0:04:41]} 37. Kh1 {[%emt 0:02:38]} Qf7 {[%emt 0:02:49]} 38. Rc6 {[%emt 0:02:29]} Rb7 {[%emt 0:00:32]} 39. Rf2 {[%emt 0:01:27]} Qe8 {[%emt 0:00:28]} 40. Re2 {[%emt 0:00:32]} Qd7 {[%emt 0:00:35]} 41. h3 {[%emt 0:01:07]} Re8 {[%emt 0:00:22]} 42. Qc3 {[%emt 0:00:20]} Ne7 {[%emt 0:00:22]} 43. Ra6 {[%emt 0:01:11]} Nf5 {[%emt 0:00:30]} 44. Nxf5 {[%emt 0:00:00]} Bxf5 {[%emt 0:00:00]} 45. Qe3 {[%emt 0:00:08]} Rc8 {[%emt 0:00:37]} 46. Ra4 {[%emt 0:00:44]} Qe6 {[%emt 0:01:00]} 47. Qb3 {[%emt 0:00:58]} Qd7 {[%emt 0:00:35]} 48. Bg1 {[%emt 0:00:39]} Qd3 {[%emt 0:00:52]} 49. Re3 {[%emt 0:00:02]} Qd7 {[%emt 0:00:07]} 50. Rc3 {[%emt 0:00:21]} Rbc7 {[%emt 0:00:29]} 51. c5 {[%emt 0:00:22]} Qe7 {[%emt 0:00:36]} 52. Qd5 {[%emt 0:00:25]} Qf6 {[%emt 0:00:25]} 53. Qd4 {[%emt 0:00:47]} Qe7 {[%emt 0:00:35]} 54. Ra6 {[%emt 0:00:52]} Rd8 {[%emt 0:00:17]} 55. Rd6 {[%emt 0:00:35]} Rb8 {[%emt 0:00:26]} 56. Rb3 {[%emt 0:00:37]} Rcb7 {[%emt 0:00:41]} 57. Qd5 {[%emt 0:00:28]} Bg6 {[%emt 0:00:23]} 58. c6 {[%emt 0:00:32]} Rxb5 {[%emt 0:00:28]} 59. Rxb5 {[%emt 0:00:58]} Rxb5 {[%emt 0:00:04]} 60. Qd4 {[%emt 0:00:00]} Re5 {[%emt 0:01:11]} 61. Rd7 {[%emt 0:00:10]} Qe8 {[%emt 0:00:28]} 62. c7 {[%emt 0:00:44]} Bf5 {[%emt 0:00:27]} 63. Rd8 {[%emt 0:00:29]} Qe7 {[%emt 0:00:28]} 64. c8=Q {[%emt 0:00:59]} Bxc8 {[%emt 0:00:30]} 65. Rxc8 {[%emt 0:00:00]} e3 {[%emt 0:00:00]} 66. Qd3+ {[%emt 0:00:06]} g6 {[%emt 0:00:19]} 67. Qe2 {[%emt 0:00:07]} a5 {[%emt 0:00:05]} 68. Rc3 {[%emt 0:00:31]} a4 {[%emt 0:00:38]} 69. Rxe3 {[%emt 0:00:00]} 1-0

[Event "Turkish Youth Championship 2024"]
[Site "Samsun"]
[Date "2024.05.22"]
[Round "7"]
[White "Tirpan, Ceren"]
[Black "Kalyoncu, Beren"]
[Result "1-0"]
[ECO "A11"]
[WhiteElo "2004"]
[BlackElo "1737"]
[Annotator "RC"]
[PlyCount "53"]
[EventDate "2024.05.18"]
[EventType "swiss"]
[EventCountry "TUR"]
[SourceTitle "playchess.com"]
[Source "ChessBase"]
[SourceQuality "1"]
[TimeControl "5400+30"]

1. c4 {[%emt 0:01:00]} c6 {[%emt 0:02:00]} 2. g3 {[%emt 0:00:00]} d5 {[%emt 0:00:00]} 3. Nf3 {[%emt 0:00:00]} Nf6 {[%emt 0:00:00]} 4. Bg2 {[%emt 0:00:00]} g6 {[%emt 0:00:30]} 5. b3 {[%emt 0:00:00]} Bg7 {[%emt 0:00:30]} 6. Bb2 {[%emt 0:00:30]} O-O {[%emt 0:00:30]} 7. O-O {[%emt 0:00:30]} Re8 {[%emt 0:01:30]} 8. d3 {[%emt 0:03:30]} Nbd7 {[%emt 0:00:30]} 9. Qc2 {[%emt 0:04:30]} e5 {[%emt 0:01:30]} 10. cxd5 {[%emt 0:06:30]} cxd5 {[%emt 0:00:30]} 11. Nc3 {[%emt 0:01:30]} a6 {[%emt 0:04:30]} 12. a4 {[%emt 0:06:30]} e4 {[%emt 0:10:30]} 13. dxe4 {[%emt 0:13:30]} dxe4 {[%emt 0:00:30]} 14. Ng5 {[%emt 0:00:30]} e3 {[%emt 0:00:30]} 15. f4 {[%emt 0:00:30]} Nf8 {[%emt 0:07:30]} 16. Nce4 {[%emt 0:09:30]} Bf5 {[%emt 0:04:30]} 17. Qc4 {[%emt 0:04:30]} Be6 {[%emt 0:07:30]} 18. Nxe6 {[%emt 0:05:30]} Nxe6 {[%emt 0:00:30]} 19. Rad1 {[%emt 0:02:30]} Qe7 {[%emt 0:02:30]} 20. Bxf6 {[%emt 0:00:00]} Bxf6 {[%emt 0:00:00]} 21. Rd7 {[%emt 0:00:00]} Red8 {[%emt 0:06:00]} 22. Rxe7 {[%emt 0:00:30]} Bxe7 {[%emt 0:00:00]} 23. Ng5 {[%emt 0:03:30]} Rac8 {[%emt 0:01:00]} 24. Qe4 {[%emt 0:00:30]} Nxg5 {[%emt 0:01:30]} 25. Qxe7 {[%emt 0:01:30]} Ne6 {[%emt 0:01:30]} 26. f5 {[%emt 0:00:30]} Rc7 {[%emt 0:00:30]} 27. Qf6 {[%emt 0:00:30]} 1-0

[Event "Turkish Youth Championship 2024"]
[Site "Samsun"]
[Date "2024.05.22"]
[Round "7"]
[White "Zerey, Demhat"]
[Black "Cilek, Bora"]
[Result "1/2-1/2"]
[ECO "A45"]
[WhiteElo "1986"]
[BlackElo "2246"]
[Annotator "RC"]
[PlyCount "87"]
[EventDate "2024.05.18"]
[EventType "swiss"]
[EventCountry "TUR"]
[SourceTitle "playchess.com"]
[Source "ChessBase"]
[SourceQuality "1"]
[TimeControl "5400+30"]

1. d4 {[%emt 0:01:00]} Nf6 {[%emt 0:01:00]} 2. Bf4 {[%emt 0:00:00]} c5 {[%emt 0:00:30]} 3. e3 {[%emt 0:01:00]} Nd5 {[%emt 0:00:00]} 4. Bg3 {[%emt 0:04:30]} Qb6 {[%emt 0:00:00]} 5. b3 {[%emt 0:02:30]} cxd4 {[%emt 0:00:30]} 6. Qxd4 {[%emt 0:03:30]} Qxd4 {[%emt 0:01:30]} 7. exd4 {[%emt 0:01:30]} Nc6 {[%emt 0:02:30]} 8. Nf3 {[%emt 0:02:30]} g6 {[%emt 0:04:30]} 9. Bc4 {[%emt 0:04:30]} Nf6 {[%emt 0:10:30]} 10. h3 {[%emt 0:06:30]} Bg7 {[%emt 0:00:30]} 11. c3 {[%emt 0:02:30]} O-O {[%emt 0:07:30]} 12. Nbd2 {[%emt 0:01:30]} d5 {[%emt 0:07:30]} 13. Bd3 {[%emt 0:06:30]} Bf5 {[%emt 0:00:30]} 14. Ke2 {[%emt 0:05:30]} Rac8 {[%emt 0:06:30]} 15. Bf4 {[%emt 0:07:30]} h5 {[%emt 0:04:30]} 16. Rac1 {[%emt 0:04:30]} e6 {[%emt 0:26:30]} 17. Rhg1 {[%emt 0:05:30]} Rfd8 {[%emt 0:06:06]} 18. Ne5 {[%emt 0:05:30]} Bxd3+ {[%emt 0:00:50]} 19. Nxd3 {[%emt 0:01:30]} Nd7 {[%emt 0:04:00]} 20. g4 {[%emt 0:04:30]} hxg4 {[%emt 0:00:46]} 21. hxg4 {[%emt 0:00:00]} Re8 {[%emt 0:00:09]} 22. Be3 {[%emt 0:06:00]} b5 {[%emt 0:01:18]} 23. f4 {[%emt 0:01:30]} a5 {[%emt 0:01:49]} 24. Nf3 {[%emt 0:01:30]} b4 {[%emt 0:01:44]} 25. cxb4 {[%emt 0:00:30]} Nxb4 {[%emt 0:00:50]} 26. Nxb4 {[%emt 0:00:30]} axb4 {[%emt 0:00:08]} 27. Bd2 {[%emt 0:01:30]} Bf8 {[%emt 0:02:00]} 28. g5 {[%emt 0:04:04]} Be7 {[%emt 0:05:49]} 29. Kd3 {[%emt 0:04:56]} Kf8 {[%emt 0:00:02]} 30. Rgd1 {[%emt 0:02:14]} Rxc1 {[%emt 0:01:08]} 31. Rxc1 {[%emt 0:00:01]} Ra8 {[%emt 0:00:00]} 32. Rc2 {[%emt 0:00:19]} Ke8 {[%emt 0:00:09]} 33. Ke2 {[%emt 0:01:08]} Kd8 {[%emt 0:03:04]} 34. Ne1 {[%emt 0:00:13]} Ra6 {[%emt 0:00:23]} 35. Nd3 {[%emt 0:00:22]} Rb6 {[%emt 0:01:02]} 36. Ke3 {[%emt 0:00:56]} Bd6 {[%emt 0:00:41]} 37. Be1 {[%emt 0:00:33]} Nb8 {[%emt 0:00:21]} 38. Rh2 {[%emt 0:03:00]} Nc6 {[%emt 0:00:33]} 39. Ne5 {[%emt 0:00:37]} Bxe5 {[%emt 0:01:14]} 40. fxe5 {[%emt 0:00:03]} Ra6 {[%emt 0:00:00]} 41. Kd3 {[%emt 0:00:17]} Kd7 {[%emt 0:00:14]} 42. Rc2 {[%emt 0:00:24]} Ra8 {[%emt 0:00:44]} 43. Rh2 {[%emt 0:00:14]} Ra7 {[%emt 0:01:04]} 44. Rf2 {[%emt 0:00:53]} 1/2-1/2

[Event "Turkish Youth Championship 2024"]
[Site "Samsun"]
[Date "2024.05.22"]
[Round "7"]
[White "Dogan, Umut Anil"]
[Black "Hamurcu, Mehmet"]
[Result "1/2-1/2"]
[ECO "E15"]
[WhiteElo "1959"]
[BlackElo "1832"]
[Annotator "RC"]
[PlyCount "62"]
[EventDate "2024.05.18"]
[EventType "swiss"]
[EventCountry "TUR"]
[SourceTitle "playchess.com"]
[Source "ChessBase"]
[SourceQuality "1"]
[TimeControl "5400+30"]

1. d4 {[%emt 0:01:00]} Nf6 {[%emt 0:01:00]} 2. c4 {[%emt 0:00:00]} e6 {[%emt 0:00:30]} 3. Nf3 {[%emt 0:00:00]} b6 {[%emt 0:01:30]} 4. g3 {[%emt 0:00:30]} Ba6 {[%emt 0:00:30]} 5. Qc2 {[%emt 0:02:30]} Bb7 {[%emt 0:04:30]} 6. Bg2 {[%emt 0:01:30]} c5 {[%emt 0:03:30]} 7. d5 {[%emt 0:04:30]} exd5 {[%emt 0:05:30]} 8. Nh4 {[%emt 0:01:30]} Nc6 {[%emt 0:05:30]} 9. cxd5 {[%emt 0:06:30]} Nb4 {[%emt 0:00:30]} 10. Qf5 {[%emt 0:09:30]} g6 {[%emt 0:14:30]} 11. Qe5+ {[%emt 0:00:30]} Qe7 {[%emt 0:00:30]} 12. Qc3 {[%emt 0:10:30]} Bxd5 {[%emt 0:10:30]} 13. O-O {[%emt 0:04:30]} Bxg2 {[%emt 0:01:30]} 14. Nxg2 {[%emt 0:00:00]} d5 {[%emt 0:04:30]} 15. Bg5 {[%emt 0:10:00]} Bg7 {[%emt 0:01:30]} 16. a3 {[%emt 0:12:30]} Nc6 {[%emt 0:00:30]} 17. Nf4 {[%emt 0:01:30]} Rd8 {[%emt 0:03:30]} 18. Qd3 {[%emt 0:08:30]} d4 {[%emt 0:15:30]} 19. Qb5 {[%emt 0:02:30]} Qd7 {[%emt 0:02:30]} 20. b4 {[%emt 0:01:30]} Ne5 {[%emt 0:00:30]} 21. a4 {[%emt 0:02:34]} O-O {[%emt 0:01:30]} 22. bxc5 {[%emt 0:01:33]} bxc5 {[%emt 0:00:30]} 23. Bxf6 {[%emt 0:01:39]} Bxf6 {[%emt 0:00:30]} 24. Nd2 {[%emt 0:02:12]} c4 {[%emt 0:04:26]} 25. Qa6 {[%emt 0:01:46]} Qd6 {[%emt 0:00:31]} 26. Qxd6 {[%emt 0:02:00]} Rxd6 {[%emt 0:00:01]} 27. Ne4 {[%emt 0:00:09]} Rc6 {[%emt 0:03:02]} 28. Nd5 {[%emt 0:00:44]} Bd8 {[%emt 0:00:03]} 29. f4 {[%emt 0:01:53]} Nd7 {[%emt 0:06:16]} 30. Rfd1 {[%emt 0:00:46]} f5 {[%emt 0:06:57]} 31. Nf2 {[%emt 0:01:07]} Nc5 {[%emt 0:02:25]} 1/2-1/2

[Event "Turkish Youth Championship 2024"]
[Site "Samsun"]
[Date "2024.05.22"]
[Round "7"]
[White "Basara, Arda"]
[Black "Zengin, Ovgu"]
[Result "1/2-1/2"]
[ECO "D36"]
[WhiteElo "1943"]
[BlackElo "1664"]
[Annotator "NA RC"]
[PlyCount "133"]
[EventDate "2024.05.18"]
[EventType "swiss"]
[EventCountry "TUR"]
[SourceTitle "playchess.com"]
[Source "ChessBase"]
[SourceQuality "1"]
[TimeControl "5400+30"]

1. d4 {[%emt 0:01:00]} d5 {[%emt 0:01:00]} 2. c4 {[%emt 0:00:30]} e6 {[%emt 0:00:00]} 3. Nc3 {[%emt 0:00:00]} Nf6 {[%emt 0:00:00]} 4. cxd5 {[%emt 0:00:00]} exd5 {[%emt 0:00:30]} 5. Bg5 {[%emt 0:00:00]} c6 {[%emt 0:00:00]} 6. Qc2 {[%emt 0:00:00]} Be7 {[%emt 0:02:00]} 7. e3 {[%emt 0:00:30]} h6 {[%emt 0:01:30]} 8. Bh4 {[%emt 0:00:30]} Nbd7 {[%emt 0:01:30]} 9. Bd3 {[%emt 0:00:00]} Nb6 {[%emt 0:00:30]} 10. Nf3 {[%emt 0:05:00]} Be6 {[%emt 0:00:30]} 11. O-O {[%emt 0:03:30]} O-O {[%emt 0:01:30]} 12. Ne5 {[%emt 0:24:30]} Nc4 {[%emt 0:08:30]} 13. Bxc4 {[%emt 0:11:30]} dxc4 {[%emt 0:00:00]} 14. f4 {[%emt 0:00:30]} Nd7 {[%emt 0:13:00]} 15. Bxe7 {[%emt 0:09:30]} Qxe7 {[%emt 0:01:30]} 16. Rad1 {[%emt 0:10:30]} Nxe5 {[%emt 0:03:30]} 17. fxe5 {[%emt 0:04:30]} f6 {[%emt 0:04:30]} 18. exf6 {[%emt 0:01:30]} Rxf6 {[%emt 0:00:30]} 19. Rxf6 {[%emt 0:00:30]} Qxf6 {[%emt 0:00:30]} 20. e4 {[%emt 0:00:00]} Bg4 {[%emt 0:01:30]} 21. Rd2 {[%emt 0:04:00]} Rf8 {[%emt 0:00:30]} 22. Qc1 {[%emt 0:00:30]} Qg5 {[%emt 0:00:30]} 23. Qe1 {[%emt 0:00:30]} b5 {[%emt 0:03:30]} 24. e5 {[%emt 0:02:30]} Bf3 {[%emt 0:04:30]} 25. a3 {[%emt 0:06:56]} a5 {[%emt 0:00:30]} 26. e6 {[%emt 0:04:10]} b4 {[%emt 0:04:30]} 27. axb4 {[%emt 0:00:31]} axb4 {[%emt 0:00:30]} 28. e7 {[%emt 0:00:00]} Re8 {[%emt 0:00:30]} 29. h4 {[%emt 0:00:00]} Qg4 {[%emt 0:00:30]} 30. Na2 {[%emt 0:02:38]} Be4 {[%emt 0:02:30]} 31. Nxb4 {[%emt 0:00:19]} Qe6 {[%emt 0:05:30]} 32. Re2 {[%emt 0:01:30]} Rxe7 {[%emt 0:00:00]} 33. Na2 {[%emt 0:02:17]} Qg6 {[%emt 0:01:00]} 34. Kh2 {[%emt 0:03:03]} Bd5 {[%emt 0:06:30]} 35. Nc3 {[%emt 0:02:23]} Qxg2+ {[%emt 0:04:30]} 36. Rxg2 {[%emt 0:00:30]} Rxe1 {[%emt 0:00:00]} 37. Rf2 {[%emt 0:00:00]} Re6 {[%emt 0:02:00]} 38. Rf5 {[%emt 0:02:12]} Rd6 {[%emt 0:00:30]} 39. h5 {[%emt 0:00:41]} Bf7 {[%emt 0:01:30]} 40. Ne2 {[%emt 0:00:59]} Re6 {[%emt 0:02:30]} 41. Nf4 {[%emt 0:00:16]} Re4 {[%emt 0:02:30]} 42. Kg3 {[%emt 0:00:01]} Rxd4 {[%emt 0:00:00]} 43. Rc5 {[%emt 0:00:02]} Bd5 {[%emt 0:01:00]} 44. Kg4 {[%emt 0:00:30]} Be6+ {[%emt 0:04:30]} 45. Kf3 {[%emt 0:00:09]} Bd5+ {[%emt 0:04:03]} 46. Kg4 {[%emt 0:00:01]} Be6+ {[%emt 0:00:14]} 47. Kf3 {[%emt 0:00:04]} Rd6 {[%emt 0:08:36]} 48. Nxe6 {[%emt 0:01:06]} Rxe6 {[%emt 0:00:30]} 49. Rxc4 {[%emt 0:00:00]} Kf7 {[%emt 0:00:00]} 50. Rc5 {[%emt 0:00:23]} Ke7 {[%emt 0:01:56]} 51. Kf4 {[%emt 0:00:27]} Rf6+ {[%emt 0:01:04]} 52. Ke5 {[%emt 0:00:26]} g6 {[%emt 0:01:15]} 53. hxg6 {[%emt 0:00:14]} Rxg6 {[%emt 0:00:04]} 54. Rc3 {[%emt 0:00:38]} Kd7 {[%emt 0:00:42]} 55. Rh3 {[%emt 0:00:23]} Kc7 {[%emt 0:00:16]} 56. Kd4 {[%emt 0:00:27]} Kb6 {[%emt 0:00:24]} 57. Rh5 {[%emt 0:00:23]} c5+ {[%emt 0:01:10]} 58. Kc4 {[%emt 0:00:05]} Rg4+ {[%emt 0:01:46]} 59. Kc3 {[%emt 0:00:06]} Rg3+ {[%emt 0:00:17]} 60. Kc4 {[%emt 0:00:36]} Rg6 {[%emt 0:00:08]} 61. b4 {[%emt 0:00:52]} Rg4+ {[%emt 0:00:36]} 62. Kb3 {[%emt 0:00:43]} Rxb4+ {[%emt 0:00:52]} 63. Kc3 {[%emt 0:00:01]} Kb5 {[%emt 0:00:02]} 64. Rxh6 {[%emt 0:00:07]} Rc4+ {[%emt 0:00:44]} 65. Kb3 {[%emt 0:00:05]} Rg4 {[%emt 0:00:00]} 66. Rh3 {[%emt 0:00:17]} Rb4+ {[%emt 0:00:46]} 67. Kc3 {[%emt 0:00:08]} 1/2-1/2

[Event "Turkish Youth Championship 2024"]
[Site "Samsun"]
[Date "2024.05.22"]
[Round "7"]
[White "Uzdemir, Ali Poyraz"]
[Black "Turgut, Hakan"]
[Result "1-0"]
[ECO "B15"]
[WhiteElo "1898"]
[BlackElo "1954"]
[Annotator "RC"]
[PlyCount "92"]
[EventDate "2024.05.18"]
[EventType "swiss"]
[EventCountry "TUR"]
[SourceTitle "playchess.com"]
[Source "ChessBase"]
[SourceQuality "1"]
[TimeControl "5400+30"]

1. e4 {[%emt 0:01:00]} c6 {[%emt 0:01:00]} 2. d4 {[%emt 0:00:00]} d5 {[%emt 0:00:30]} 3. Nc3 {[%emt 0:00:00]} dxe4 {[%emt 0:00:30]} 4. Nxe4 {[%emt 0:00:30]} Nf6 {[%emt 0:00:00]} 5. Nxf6+ {[%emt 0:00:30]} exf6 {[%emt 0:00:00]} 6. c3 {[%emt 0:00:00]} Bd6 {[%emt 0:00:00]} 7. Bd3 {[%emt 0:00:00]} O-O {[%emt 0:00:00]} 8. Qc2 {[%emt 0:00:30]} Re8+ {[%emt 0:00:30]} 9. Ne2 {[%emt 0:00:30]} h5 {[%emt 0:00:30]} 10. O-O {[%emt 0:00:00]} h4 {[%emt 0:00:00]} 11. h3 {[%emt 0:00:00]} Nd7 {[%emt 0:02:00]} 12. Bf4 {[%emt 0:00:30]} Nf8 {[%emt 0:04:30]} 13. Bxd6 {[%emt 0:01:30]} Qxd6 {[%emt 0:00:00]} 14. Rad1 {[%emt 0:00:30]} b6 {[%emt 0:10:00]} 15. Be4 {[%emt 0:07:30]} Bb7 {[%emt 0:10:30]} 16. c4 {[%emt 0:02:30]} Ne6 {[%emt 0:11:30]} 17. d5 {[%emt 0:07:30]} cxd5 {[%emt 0:00:30]} 18. Bxd5 {[%emt 0:00:30]} Qc7 {[%emt 0:00:30]} 19. Nc3 {[%emt 0:08:30]} Rad8 {[%emt 0:11:30]} 20. Nb5 {[%emt 0:03:30]} Qb8 {[%emt 0:00:30]} 21. Bxb7 {[%emt 0:03:30]} Qxb7 {[%emt 0:00:30]} 22. Nd6 {[%emt 0:17:30]} Rxd6 {[%emt 0:01:30]} 23. Rxd6 {[%emt 0:00:00]} Nf4 {[%emt 0:00:00]} 24. f3 {[%emt 0:02:00]} Ne2+ {[%emt 0:15:00]} 25. Kh2 {[%emt 0:01:30]} Qe7 {[%emt 0:01:30]} 26. Qd2 {[%emt 0:05:30]} g5 {[%emt 0:02:30]} 27. Qd5 {[%emt 0:12:30]} Qe3 {[%emt 0:04:30]} 28. Rxf6 {[%emt 0:02:30]} Re6 {[%emt 0:02:30]} 29. Rxe6 {[%emt 0:06:37]} fxe6 {[%emt 0:00:30]} 30. Qe4 {[%emt 0:01:14]} Qd2 {[%emt 0:01:30]} 31. Qxe6+ {[%emt 0:01:46]} Kh7 {[%emt 0:00:30]} 32. Qf7+ {[%emt 0:00:54]} Kh6 {[%emt 0:00:30]} 33. Qf6+ {[%emt 0:00:25]} Kh5 {[%emt 0:01:30]} 34. Rf2 {[%emt 0:01:14]} Qe3 {[%emt 0:00:00]} 35. Rxe2 {[%emt 0:02:39]} Qxe2 {[%emt 0:00:00]} 36. f4 {[%emt 0:00:49]} gxf4 {[%emt 0:00:30]} 37. Qf5+ {[%emt 0:00:06]} Kh6 {[%emt 0:00:30]} 38. Qxf4+ {[%emt 0:00:03]} Kh5 {[%emt 0:01:30]} 39. Qf3+ {[%emt 0:00:17]} Qxf3 {[%emt 0:00:30]} 40. gxf3 {[%emt 0:00:30]} Kg5 {[%emt 0:00:00]} 41. b4 {[%emt 0:00:00]} Kf4 {[%emt 0:00:00]} 42. Kg2 {[%emt 0:03:37]} Ke5 {[%emt 0:00:00]} 43. Kf2 {[%emt 0:01:24]} Kd4 {[%emt 0:00:00]} 44. c5 {[%emt 0:00:17]} bxc5 {[%emt 0:00:30]} 45. bxc5 {[%emt 0:00:00]} Kxc5 {[%emt 0:00:30]} 46. Ke3 {[%emt 0:00:01]} Kd5 {[%emt 0:00:30]} 1-0

[Event "Turkish Youth Championship 2024"]
[Site "Samsun"]
[Date "2024.05.22"]
[Round "7"]
[White "Buyuk, Ecrin Efsa"]
[Black "Zeyrek, Ayaz"]
[Result "0-1"]
[ECO "B23"]
[WhiteElo "1892"]
[BlackElo "1750"]
[Annotator "NA RC"]
[PlyCount "84"]
[EventDate "2024.05.18"]
[EventType "swiss"]
[EventCountry "TUR"]
[SourceTitle "playchess.com"]
[Source "ChessBase"]
[SourceQuality "1"]
[TimeControl "5400+30"]

1. e4 {[%emt 0:02:00]} c5 {[%emt 0:01:00]} 2. Nc3 {[%emt 0:00:30]} Nc6 {[%emt 0:00:30]} 3. Nge2 {[%emt 0:00:30]} Nf6 {[%emt 0:00:30]} 4. g3 {[%emt 0:00:00]} d5 {[%emt 0:02:30]} 5. exd5 {[%emt 0:01:00]} Nd4 {[%emt 0:00:30]} 6. Bg2 {[%emt 0:01:30]} Bg4 {[%emt 0:00:00]} 7. O-O {[%emt 0:00:00]} Nxd5 {[%emt 0:03:00]} 8. f3 {[%emt 0:00:00]} Bf5 {[%emt 0:00:30]} 9. Nxd4 {[%emt 0:00:30]} cxd4 {[%emt 0:00:30]} 10. Nxd5 {[%emt 0:00:30]} Qxd5 {[%emt 0:00:30]} 11. f4 {[%emt 0:00:30]} Qd7 {[%emt 0:01:30]} 12. b3 {[%emt 0:02:30]} Rc8 {[%emt 0:02:30]} 13. c4 {[%emt 0:23:30]} g6 {[%emt 0:03:30]} 14. Qf3 {[%emt 0:13:30]} b6 {[%emt 0:03:30]} 15. Ba3 {[%emt 0:00:00]} Bg7 {[%emt 0:00:00]} 16. Rfe1 {[%emt 0:01:00]} Bf6 {[%emt 0:00:00]} 17. Qf1 {[%emt 0:09:30]} d3 {[%emt 0:06:30]} 18. Rab1 {[%emt 0:03:30]} O-O {[%emt 0:04:30]} 19. h3 {[%emt 0:00:30]} h5 {[%emt 0:00:30]} 20. Kh2 {[%emt 0:03:30]} Rfe8 {[%emt 0:02:30]} 21. Re3 {[%emt 0:05:30]} Bd4 {[%emt 0:03:30]} 22. Rbe1 {[%emt 0:00:30]} Bxe3 {[%emt 0:02:30]} 23. Rxe3 {[%emt 0:00:00]} b5 {[%emt 0:07:30]} 24. g4 {[%emt 0:11:00]} hxg4 {[%emt 0:01:30]} 25. hxg4 {[%emt 0:00:30]} Bxg4 {[%emt 0:00:30]} 26. Rxd3 {[%emt 0:00:00]} Qf5 {[%emt 0:00:30]} 27. Rd5 {[%emt 0:06:10]} Qf6 {[%emt 0:02:30]} 28. Rg5 {[%emt 0:04:53]} Bd7 {[%emt 0:03:30]} 29. Bb4 {[%emt 0:00:29]} e5 {[%emt 0:01:30]} 30. Bd5 {[%emt 0:04:37]} Bc6 {[%emt 0:02:30]} 31. Bxc6 {[%emt 0:01:59]} Rxc6 {[%emt 0:00:30]} 32. Bc3 {[%emt 0:00:31]} Qxf4+ {[%emt 0:00:30]} 33. Qxf4 {[%emt 0:00:30]} exf4 {[%emt 0:00:00]} 34. Rxb5 {[%emt 0:00:00]} Rce6 {[%emt 0:01:00]} 35. Kg2 {[%emt 0:00:29]} f6 {[%emt 0:00:30]} 36. Kf3 {[%emt 0:02:02]} g5 {[%emt 0:01:30]} 37. c5 {[%emt 0:00:36]} Kf7 {[%emt 0:00:30]} 38. Ra5 {[%emt 0:01:16]} R8e7 {[%emt 0:00:30]} 39. b4 {[%emt 0:00:27]} Kg6 {[%emt 0:00:30]} 40. b5 {[%emt 0:00:10]} Kf5 {[%emt 0:00:30]} 41. d3 {[%emt 0:00:35]} Re2 {[%emt 0:00:00]} 42. c6 {[%emt 0:00:41]} g4# {[%emt 0:00:00]} 0-1

[Event "Turkish Youth Championship 2024"]
[Site "Samsun"]
[Date "2024.05.22"]
[Round "7"]
[White "Selvi, Kaan"]
[Black "Latifoglu, Ali Emir"]
[Result "1-0"]
[ECO "C91"]
[WhiteElo "1881"]
[BlackElo "1641"]
[Annotator "NA RC"]
[PlyCount "59"]
[EventDate "2024.05.18"]
[EventType "swiss"]
[EventCountry "TUR"]
[SourceTitle "playchess.com"]
[Source "ChessBase"]
[SourceQuality "1"]
[TimeControl "5400+30"]

1. e4 {[%emt 0:01:00]} e5 {[%emt 0:01:00]} 2. Nf3 {[%emt 0:00:30]} Nc6 {[%emt 0:00:00]} 3. Bb5 {[%emt 0:00:30]} a6 {[%emt 0:00:00]} 4. Ba4 {[%emt 0:00:00]} Nf6 {[%emt 0:00:30]} 5. O-O {[%emt 0:00:00]} Be7 {[%emt 0:00:00]} 6. Re1 {[%emt 0:00:30]} b5 {[%emt 0:00:00]} 7. Bb3 {[%emt 0:00:30]} d6 {[%emt 0:00:00]} 8. c3 {[%emt 0:00:00]} O-O {[%emt 0:00:00]} 9. d4 {[%emt 0:00:00]} Bg4 {[%emt 0:01:30]} 10. Be3 {[%emt 0:04:30]} Re8 {[%emt 0:04:30]} 11. Nbd2 {[%emt 0:04:30]} Bf8 {[%emt 0:02:30]} 12. d5 {[%emt 0:09:30]} Nb8 {[%emt 0:00:00]} 13. a4 {[%emt 0:02:30]} Nbd7 {[%emt 0:02:00]} 14. Bc2 {[%emt 0:02:30]} g6 {[%emt 0:03:30]} 15. h3 {[%emt 0:01:30]} Bxf3 {[%emt 0:00:30]} 16. Qxf3 {[%emt 0:03:30]} Bg7 {[%emt 0:00:30]} 17. Qe2 {[%emt 0:01:30]} bxa4 {[%emt 0:01:30]} 18. Bxa4 {[%emt 0:04:30]} Rb8 {[%emt 0:09:30]} 19. b4 {[%emt 0:03:30]} Nh5 {[%emt 0:02:30]} 20. Qxa6 {[%emt 0:06:30]} Nf4 {[%emt 0:01:30]} 21. Nf3 {[%emt 0:00:30]} f5 {[%emt 0:01:30]} 22. exf5 {[%emt 0:06:30]} Rf8 {[%emt 0:04:30]} 23. Qc6 {[%emt 0:05:30]} Nb6 {[%emt 0:01:30]} 24. Bxf4 {[%emt 0:08:30]} exf4 {[%emt 0:02:30]} 25. fxg6 {[%emt 0:00:00]} Nxa4 {[%emt 0:00:00]} 26. gxh7+ {[%emt 0:00:00]} Kh8 {[%emt 0:01:00]} 27. Rxa4 {[%emt 0:00:30]} Rb6 {[%emt 0:02:30]} 28. Qc4 {[%emt 0:01:30]} Qd7 {[%emt 0:00:00]} 29. Ra7 {[%emt 0:01:30]} Rc8 {[%emt 0:00:00]} 30. Nd4 {[%emt 0:08:30]} 1-0